fUST/lending_fUST_20240507
["ID","MTS","AMOUNT","RATE_DAILY","PERIOD"]
[326500024,1715017850886,-6374.7684715,0.00016338,2]
[326500025,1715017850895,-1975.44999999,0.00016338,2]
[326500027,1715017850905,-198.6923908,0.00016416,2]
[326500028,1715017850915,-2475.00076857,0.00016436,2]
[326500041,1715018286976,230.2796774,9.999e-05,2]
[326500042,1715018729350,230.2796774,9.999e-05,2]
[326500068,1715019037409,-230.2796774,0.00015323,2]
[326500069,1715019037419,-145.44936625,0.00015324,2]
[326500070,1715019037431,-125.45712855,0.00015324,2]
[326500071,1715019037440,-3092.32207467,0.00015889,2]
[326500072,1715019037452,-1051.21646744,0.00015889,2]
[326500097,1715019041139,-287.94063479,0.00015889,2]
[326500164,1715019047003,-869.45982975,0.00015889,2]
[326500166,1715019047012,-339.678314,0.0001589,2]
[326500168,1715019047021,-165.9957168,0.00016237,2]
[326500169,1715019047031,-493.0,0.00016237,2]
[326500170,1715019047040,-150.0,0.00016237,2]
[326500171,1715019047049,-170.30776356,0.00016338,2]
[326500172,1715019047059,-55555.0,0.00016338,2]
[326500173,1715019047068,-170.30776354,0.00016384,2]
[326500174,1715019047077,-170.30776354,0.00016429,2]
[326500175,1715019047087,-31485.16347349,0.00016436,2]
[326500176,1715019047097,-13193.00211425,0.00016436,2]
[326500177,1715019047106,-156.70737087,0.00016436,2]
[326500178,1715019047115,-314.65978959,0.00016436,2]
[326500179,1715019047127,-186.32922869,0.00016436,2]
[326500180,1715019047137,-154.78330338,0.00016436,2]
[326500181,1715019047146,-409.39448055,0.00016436,2]
[326500182,1715019047156,-473.07523748,0.00016436,2]
[326500183,1715019047165,-907.22455232,0.00016436,2]
[326500184,1715019047175,-1091.92588684,0.00016436,2]
[326500185,1715019047184,-118845.59011845,0.00016438,5]
[326500193,1715019370574,-371.812274,0.00021,9]
[326500194,1715019450981,4273.53744145,0.00021,10]
[326500195,1715019462544,3471.10435998,0.00021,10]
[326500196,1715019516098,230.2796774,9.999e-05,2]
[326500197,1715019956845,230.2796774,9.999e-05,2]
[326500254,1715020248076,-230.2796774,0.00014999,2]
[326500255,1715020248086,-285.22063736,0.00015,2]
[326500256,1715020248095,-489.94478985,0.00015519,2]
[326500257,1715020248105,-394.126266,0.0001589,2]
[326500258,1715020248117,-493.0,0.000161,2]
[326500259,1715020248127,-150.0,0.000161,2]
[326500260,1715020248139,-1335.70800233,0.00016336,2]
[326500261,1715020248149,-166.34331361,0.00016337,2]
[326500262,1715020248158,-1670.7014822,0.00016338,2]
[326500263,1715020248167,-170.30776354,0.00016338,2]
[326500264,1715020248176,-24442.23590762,0.00016338,2]
[326500268,1715020248807,-10765.14338139,0.00016338,2]
[326500329,1715020249425,-2540.87731046,0.00016338,2]
[326500331,1715020249437,-17806.74340053,0.00016338,2]
[326500333,1715020249446,-153.0,0.000164,2]
[326500335,1715020249456,-153.0,0.000164,2]
[326500338,1715020249465,-204.1392147,0.000164,2]
[326500341,1715020249474,-408.2007493,0.000164,2]
[326500344,1715020249483,-204.1392147,0.000164,2]
[326500346,1715020249493,-204.1392147,0.000164,2]
[326500347,1715020249502,-153.0,0.000164,2]
[326500349,1715020249511,-153.0,0.000164,2]
[326500351,1715020249520,-306.0,0.000164,2]
[326500352,1715020249529,-153.0,0.000164,2]
[326500353,1715020249539,-153.0,0.000164,2]
[326500354,1715020249549,-153.0,0.000164,2]
[326500355,1715020249558,-204.1392147,0.000164,2]
[326500356,1715020249568,-153.0,0.000164,2]
[326500358,1715020249578,-153.0,0.000164,2]
[326500360,1715020249587,-153.0,0.000164,2]
[326500362,1715020249597,-153.0,0.000164,2]
[326500364,1715020249606,-153.0,0.000164,2]
[326500366,1715020249616,-204.1392147,0.000164,2]
[326500368,1715020249626,-170.30776354,0.00016429,2]
[326500379,1715020249799,-3570.05368274,0.00016437,2]
[326500380,1715020249809,-129815.98964329,0.00016438,5]
[326500381,1715020249818,-25759.44012718,0.00016438,2]
[326500382,1715020249828,-500.0,0.00016438,2]
[326500383,1715020249841,-500.0,0.00016438,2]
[326500384,1715020249851,-501.17552555,0.00016438,2]
[326500385,1715020249860,-500.0,0.00016438,2]
[326500386,1715020249871,-500.0,0.00016438,2]
[326500387,1715020249883,-500.0,0.00016438,2]
[326500388,1715020249892,-500.0,0.00016438,2]
[326500389,1715020249904,-500.0,0.00016438,2]
[326500390,1715020249915,-500.0,0.00016438,2]
[326500391,1715020249925,-500.0,0.00016438,2]
[326500392,1715020249935,-500.0,0.00016438,2]
[326500393,1715020249944,-500.0,0.00016438,2]
[326500394,1715020249953,-500.0,0.00016438,2]
[326500395,1715020249963,-1000.0,0.00016438,2]
[326500396,1715020249973,-793.35,0.00016438,2]
[326500397,1715020249982,-501.33149807,0.00016438,2]
[326500398,1715020249992,-500.0,0.00016438,2]
[326500399,1715020250001,-500.0,0.00016438,2]
[326500400,1715020250011,-151.0,0.00016438,2]
[326500401,1715020250021,-151.0,0.00016438,2]
[326500402,1715020250030,-500.0,0.00016438,2]
[326500403,1715020250040,-151.0,0.00016438,2]
[326500404,1715020250049,-195.203092,0.00016438,2]
[326500405,1715020250059,-921.74,0.00016438,2]
[326500406,1715020250069,-500.0,0.00016438,2]
[326500407,1715020250078,-500.0,0.00016438,2]
[326500408,1715020250089,-500.0,0.00016438,2]
[326500409,1715020250099,-500.0,0.00016438,2]
[326500410,1715020250109,-500.0,0.00016438,2]
[326500411,1715020250119,-500.0,0.00016438,2]
[326500412,1715020250129,-500.0,0.00016438,2]
[326500413,1715020250138,-500.0,0.00016438,2]
[326500414,1715020250147,-500.0,0.00016438,2]
[326500415,1715020250157,-500.0,0.00016438,2]
[326500416,1715020250166,-151.0,0.00016438,2]
[326500417,1715020250175,-151.0,0.00016438,2]
[326500418,1715020250185,-151.0,0.00016438,2]
[326500419,1715020250194,-151.0,0.00016438,2]
[326500420,1715020250203,-500.0,0.00016438,2]
[326500421,1715020250213,-545.9,0.00016438,2]
[326500422,1715020250224,-500.0,0.00016438,2]
[326500423,1715020250234,-500.0,0.00016438,2]
[326500424,1715020250244,-500.0,0.00016438,2]
[326500425,1715020250254,-500.0,0.00016438,2]
[326500426,1715020250267,-194.13271619,0.00016438,2]
[326500427,1715020250278,-500.0,0.00016438,2]
[326500428,1715020250287,-500.0,0.00016438,2]
[326500429,1715020250297,-500.0,0.00016438,2]
[326500430,1715020250307,-501.93477733,0.00016438,2]
[326500431,1715020250316,-161.15634553,0.00016438,2]
[326500432,1715020250325,-500.0,0.00016438,2]
[326500433,1715020250335,-500.0,0.00016438,2]
[326500434,1715020250345,-519.23221594,0.00016438,2]
[326500435,1715020250359,-569.34,0.00016438,2]
[326500436,1715020250370,-500.0,0.00016438,2]
[326500437,1715020250380,-500.0,0.00016438,2]
[326500438,1715020250389,-500.0,0.00016438,2]
[326500439,1715020250399,-500.0,0.00016438,2]
[326500440,1715020250408,-500.0,0.00016438,2]
[326500441,1715020250417,-500.0,0.00016438,2]
[326500442,1715020250426,-552.9,0.00016438,2]
[326500443,1715020250436,-500.0,0.00016438,2]
[326500444,1715020250445,-553.27,0.00016438,2]
[326500445,1715020250454,-500.0,0.00016438,2]
[326500446,1715020250463,-500.0,0.00016438,2]
[326500447,1715020250472,-500.0,0.00016438,2]
[326500448,1715020250482,-500.0,0.00016438,2]
[326500449,1715020250491,-712.55,0.00016438,2]
[326500450,1715020250501,-727.99,0.00016438,2]
[326500451,1715020250510,-500.0,0.00016438,2]
[326500452,1715020250522,-515.89,0.00016438,2]
[326500453,1715020250533,-500.0,0.00016438,2]
[326500454,1715020250542,-500.0,0.00016438,2]
[326500455,1715020250552,-500.0,0.00016438,2]
[326500456,1715020250562,-151.0,0.00016438,2]
[326500457,1715020250572,-151.0,0.00016438,2]
[326500458,1715020250581,-151.0,0.00016438,2]
[326500459,1715020250590,-151.0,0.00016438,2]
[326500460,1715020250600,-151.0,0.00016438,2]
[326500461,1715020250609,-151.0,0.00016438,2]
[326500462,1715020250619,-500.0,0.00016438,2]
[326500463,1715020250628,-558.08,0.00016438,2]
[326500464,1715020250638,-151.0,0.00016438,2]
[326500465,1715020250647,-151.0,0.00016438,2]
[326500466,1715020250657,-151.0,0.00016438,2]
[326500467,1715020250667,-151.0,0.00016438,2]
[326500468,1715020250677,-151.0,0.00016438,2]
[326500469,1715020250686,-159.247639,0.00016438,2]
[326500470,1715020250696,-500.0,0.00016438,2]
[326500471,1715020250705,-500.0,0.00016438,2]
[326500472,1715020250715,-500.0,0.00016438,2]
[326500473,1715020250725,-500.0,0.00016438,2]
[326500474,1715020250734,-1000.0,0.00016438,2]
[326500475,1715020250744,-500.0,0.00016438,2]
[326500476,1715020250753,-500.0,0.00016438,2]
[326500477,1715020250763,-500.0,0.00016438,2]
[326500478,1715020250772,-500.0,0.00016438,2]
[326500479,1715020250782,-500.0,0.00016438,2]
[326500480,1715020250794,-500.0,0.00016438,2]
[326500481,1715020250805,-500.0,0.00016438,2]
[326500482,1715020250816,-239.75814575,0.00016438,2]
[326500483,1715020250827,-500.0,0.00016438,2]
[326500484,1715020250839,-500.0,0.00016438,2]
[326500485,1715020250848,-494.05366465,0.00016438,2]
[326500486,1715020250858,-500.0,0.00016438,2]
[326500487,1715020250871,-500.0,0.00016438,2]
[326500488,1715020250880,-697.98,0.00016438,2]
[326500489,1715020250894,-500.0,0.00016438,2]
[326500490,1715020250905,-500.0,0.00016438,2]
[326500491,1715020250915,-500.0,0.00016438,2]
[326500492,1715020250925,-1483.56,0.00016438,2]
[326500493,1715020250935,-520.91,0.00016438,2]
[326500494,1715020250944,-543.57,0.00016438,2]
[326500495,1715020250954,-500.0,0.00016438,2]
[326500496,1715020250964,-500.0,0.00016438,2]
[326500497,1715020250973,-500.0,0.00016438,2]
[326500498,1715020250983,-500.0,0.00016438,2]
[326500499,1715020250994,-500.0,0.00016438,2]
[326500500,1715020251003,-853.82,0.00016438,2]
[326500501,1715020251013,-500.0,0.00016438,2]
[326500502,1715020251023,-813.93,0.00016438,2]
[326500503,1715020251033,-500.0,0.00016438,2]
[326500504,1715020251042,-500.0,0.00016438,2]
[326500505,1715020251052,-500.0,0.00016438,2]
[326500506,1715020251062,-180.67046333,0.00016438,2]
[326500507,1715020251071,-563.2,0.00016438,2]
[326500508,1715020251081,-500.0,0.00016438,2]
[326500509,1715020251091,-500.0,0.00016438,2]
[326500510,1715020251100,-3797.3,0.00016438,2]
[326500511,1715020251110,-500.0,0.00016438,2]
[326500512,1715020251123,-500.0,0.00016438,2]
[326500513,1715020251133,-500.0,0.00016438,2]
[326500514,1715020251142,-500.0,0.00016438,2]
[326500515,1715020251152,-500.0,0.00016438,2]
[326500516,1715020251161,-500.0,0.00016438,2]
[326500517,1715020251171,-500.0,0.00016438,2]
[326500518,1715020251180,-1044.84,0.00016438,2]
[326500519,1715020251189,-1788.84,0.00016438,2]
[326500520,1715020251199,-500.0,0.00016438,2]
[326500521,1715020251208,-500.0,0.00016438,2]
[326500522,1715020251218,-479.17875976,0.00016438,2]
[326500523,1715020251227,-500.0,0.00016438,2]
[326500524,1715020251239,-500.0,0.00016438,2]
[326500525,1715020251251,-500.0,0.00016438,2]
[326500526,1715020251260,-500.0,0.00016438,2]
[326500527,1715020251270,-500.0,0.00016438,2]
[326500528,1715020251279,-500.0,0.00016438,2]
[326500529,1715020251289,-1586.38,0.00016438,2]
[326500530,1715020251299,-500.0,0.00016438,2]
[326500531,1715020251308,-500.0,0.00016438,2]
[326500532,1715020251317,-500.0,0.00016438,2]
[326500533,1715020251327,-582.12484227,0.00016438,2]
[326500534,1715020251336,-151.0,0.00016438,2]
[326500535,1715020251346,-3353.55,0.00016438,2]
[326500536,1715020251355,-500.0,0.00016438,2]
[326500537,1715020251366,-377.9495604,0.00016438,2]
[326500538,1715020251375,-500.0,0.00016438,2]
[326500539,1715020251385,-500.0,0.00016438,2]
[326500540,1715020251394,-500.0,0.00016438,2]
[326500541,1715020251404,-500.0,0.00016438,2]
[326500542,1715020251413,-500.0,0.00016438,2]
[326500543,1715020251423,-500.0,0.00016438,2]
[326500544,1715020251432,-1488.08,0.00016438,2]
[326500545,1715020251442,-581.48,0.00016438,2]
[326500546,1715020251451,-850.94,0.00016438,2]
[326500547,1715020251461,-500.0,0.00016438,2]
[326500548,1715020251478,-500.0,0.00016438,2]
[326500549,1715020251488,-500.0,0.00016438,2]
[326500550,1715020251498,-500.0,0.00016438,2]
[326500551,1715020251507,-500.0,0.00016438,2]
[326500552,1715020251517,-500.0,0.00016438,2]
[326500553,1715020251526,-500.0,0.00016438,2]
[326500554,1715020251535,-500.0,0.00016438,2]
[326500555,1715020251545,-500.0,0.00016438,2]
[326500556,1715020251554,-884.63,0.00016438,2]
[326500557,1715020251563,-151.0,0.00016438,2]
[326500558,1715020251572,-151.0,0.00016438,2]
[326500559,1715020251582,-500.0,0.00016438,2]
[326500560,1715020251591,-500.0,0.00016438,2]
[326500561,1715020251601,-500.0,0.00016438,2]
[326500562,1715020251611,-531.16,0.00016438,2]
[326500563,1715020251621,-500.0,0.00016438,2]
[326500564,1715020251632,-681.65,0.00016438,2]
[326500565,1715020251641,-500.0,0.00016438,2]
[326500566,1715020251651,-500.0,0.00016438,2]
[326500567,1715020251660,-594.09579856,0.00016438,2]
[326500568,1715020251670,-500.0,0.00016438,2]
[326500569,1715020251679,-151.0,0.00016438,2]
[326500570,1715020251688,-151.0,0.00016438,2]
[326500571,1715020251698,-151.0,0.00016438,2]
[326500572,1715020251708,-500.0,0.00016438,2]
[326500573,1715020251717,-500.0,0.00016438,2]
[326500574,1715020251727,-500.0,0.00016438,2]
[326500575,1715020251736,-151.0,0.00016438,2]
[326500576,1715020251745,-500.0,0.00016438,2]
[326500577,1715020251755,-500.0,0.00016438,2]
[326500578,1715020251765,-500.0,0.00016438,2]
[326500579,1715020251774,-500.0,0.00016438,2]
[326500580,1715020251783,-500.0,0.00016438,2]
[326500581,1715020251794,-500.0,0.00016438,2]
[326500582,1715020251804,-500.0,0.00016438,2]
[326500583,1715020251814,-500.0,0.00016438,2]
[326500584,1715020251825,-500.0,0.00016438,2]
[326500585,1715020251838,-677.39,0.00016438,2]
[326500586,1715020251848,-500.0,0.00016438,2]
[326500587,1715020251858,-500.0,0.00016438,2]
[326500588,1715020251870,-500.0,0.00016438,2]
[326500589,1715020251880,-348.99770359,0.00016438,2]
[326500590,1715020251889,-527.23596349,0.00016438,2]
[326500591,1715020251899,-1196.95,0.00016438,2]
[326500592,1715020251909,-500.0,0.00016438,2]
[326500593,1715020251920,-500.0,0.00016438,2]
[326500594,1715020251930,-151.0,0.00016438,2]
[326500595,1715020251941,-151.0,0.00016438,2]
[326500596,1715020251952,-500.0,0.00016438,2]
[326500597,1715020251962,-151.0,0.00016438,2]
[326500598,1715020251972,-500.0,0.00016438,2]
[326500599,1715020251981,-151.0,0.00016438,2]
[326500600,1715020251990,-151.0,0.00016438,2]
[326500601,1715020252000,-500.0,0.00016438,2]
[326500602,1715020252009,-151.0,0.00016438,2]
[326500603,1715020252018,-151.0,0.00016438,2]
[326500604,1715020252028,-151.0,0.00016438,2]
[326500605,1715020252038,-151.0,0.00016438,2]
[326500606,1715020252047,-151.0,0.00016438,2]
[326500607,1715020252056,-151.0,0.00016438,2]
[326500608,1715020252066,-500.0,0.00016438,2]
[326500609,1715020252075,-500.0,0.00016438,2]
[326500610,1715020252085,-1160.88,0.00016438,2]
[326500611,1715020252093,-151.0,0.00016438,2]
[326500612,1715020252103,-500.0,0.00016438,2]
[326500613,1715020252113,-500.0,0.00016438,2]
[326500614,1715020252124,-500.0,0.00016438,2]
[326500615,1715020252134,-1352.84,0.00016438,2]
[326500616,1715020252143,-500.0,0.00016438,2]
[326500617,1715020252156,-804.91,0.00016438,2]
[326500618,1715020252165,-797.94,0.00016438,2]
[326500619,1715020252175,-151.0,0.00016438,2]
[326500620,1715020252186,-151.0,0.00016438,2]
[326500621,1715020252195,-182.679602,0.00016438,2]
[326500622,1715020252205,-500.0,0.00016438,2]
[326500623,1715020252215,-400.95005688,0.00016438,2]
[326500624,1715020252224,-339.122371,0.00016438,2]
[326500625,1715020252234,-339.122371,0.00016438,2]
[326500626,1715020252243,-339.122371,0.00016438,2]
[326500627,1715020252253,-339.122371,0.00016438,2]
[326500628,1715020252262,-339.122371,0.00016438,2]
[326500629,1715020252272,-339.122371,0.00016438,2]
[326500630,1715020252282,-339.122371,0.00016438,2]
[326500631,1715020252291,-339.122371,0.00016438,2]
[326500632,1715020252302,-339.122371,0.00016438,2]
[326500633,1715020252313,-339.122371,0.00016438,2]
[326500634,1715020252323,-339.122371,0.00016438,2]
[326500635,1715020252332,-319.84419381,0.00016438,2]
[326500636,1715020252341,-339.122371,0.00016438,2]
[326500637,1715020252351,-339.122371,0.00016438,2]
[326500638,1715020252360,-339.122371,0.00016438,2]
[326500639,1715020252370,-339.122371,0.00016438,2]
[326500640,1715020252380,-339.122371,0.00016438,2]
[326500641,1715020252389,-339.122371,0.00016438,2]
[326500642,1715020252399,-339.122371,0.00016438,2]
[326500643,1715020252409,-339.122371,0.00016438,2]
[326500644,1715020252418,-339.122375,0.00016438,2]
[326500645,1715020252427,-330.96884168,0.00016438,2]
[326500646,1715020252437,-500.0,0.00016438,2]
[326500647,1715020252447,-500.0,0.00016438,2]
[326500648,1715020252456,-500.0,0.00016438,2]
[326500649,1715020252466,-328.52729815,0.00016438,2]
[326500650,1715020252475,-6490.66,0.00016438,2]
[326500651,1715020252485,-500.0,0.00016438,2]
[326500652,1715020252495,-151.0,0.00016438,2]
[326500653,1715020252504,-267.299872,0.00016438,2]
[326500654,1715020252513,-500.0,0.00016438,2]
[326500655,1715020252523,-500.0,0.00016438,2]
[326500656,1715020252533,-587.78,0.00016438,2]
[326500657,1715020252543,-500.0,0.00016438,2]
[326500658,1715020252553,-500.0,0.00016438,2]
[326500659,1715020252563,-1082.47,0.00016438,2]
[326500660,1715020252572,-500.0,0.00016438,2]
[326500661,1715020252581,-416.0092392,0.00016438,2]
[326500662,1715020252591,-151.0,0.00016438,2]
[326500663,1715020252600,-533.57,0.00016438,2]
[326500664,1715020252610,-500.0,0.00016438,2]
[326500665,1715020252624,-500.0,0.00016438,2]
[326500666,1715020252633,-1420.74,0.00016438,2]
[326500667,1715020252643,-536.29,0.00016438,2]
[326500668,1715020252654,-500.0,0.00016438,2]
[326500669,1715020252672,-671.22,0.00016438,2]
[326500670,1715020252683,-500.0,0.00016438,2]
[326500671,1715020252693,-2271.34,0.00016438,2]
[326500672,1715020252703,-508.89,0.00016438,2]
[326500673,1715020252713,-644.39,0.00016438,2]
[326500674,1715020252723,-2984.37,0.00016438,2]
[326500675,1715020252732,-167.25064395,0.00016438,2]
[326500676,1715020252742,-500.0,0.00016438,2]
[326500677,1715020252752,-572.06698273,0.00016438,2]
[326500678,1715020252761,-500.0,0.00016438,2]
[326500679,1715020252771,-205.898553,0.00016438,2]
[326500680,1715020252781,-151.0,0.00016438,2]
[326500681,1715020252790,-205.898553,0.00016438,2]
[326500682,1715020252800,-297.695404,0.00016438,2]
[326500683,1715020252809,-205.898553,0.00016438,2]
[326500684,1715020252818,-205.898553,0.00016438,2]
[326500685,1715020252830,-205.898553,0.00016438,2]
[326500686,1715020252840,-205.898553,0.00016438,2]
[326500687,1715020252849,-500.0,0.00016438,2]
[326500688,1715020252859,-846.11,0.00016438,2]
[326500689,1715020252874,-205.898553,0.00016438,2]
[326500690,1715020252884,-153.86289084,0.00016438,2]
[326500691,1715020252894,-205.898553,0.00016438,2]
[326500692,1715020252904,-205.898553,0.00016438,2]
[326500693,1715020252914,-205.898553,0.00016438,2]
[326500694,1715020252923,-502.12,0.00016438,2]
[326500695,1715020252932,-205.898553,0.00016438,2]
[326500696,1715020252942,-205.898553,0.00016438,2]
[326500697,1715020253059,-500.0,0.00016438,2]
[326500698,1715020253084,-205.898553,0.00016438,2]
[326500699,1715020253094,-205.898553,0.00016438,2]
[326500700,1715020253103,-205.898553,0.00016438,2]
[326500701,1715020253116,-500.0,0.00016438,2]
[326500702,1715020253126,-500.0,0.00016438,2]
[326500703,1715020253135,-500.0,0.00016438,2]
[326500704,1715020253145,-205.898553,0.00016438,2]
[326500705,1715020253156,-500.0,0.00016438,2]
[326500706,1715020253166,-205.898553,0.00016438,2]
[326500707,1715020253175,-205.898553,0.00016438,2]
[326500708,1715020253184,-205.898553,0.00016438,2]
[326500709,1715020253193,-500.0,0.00016438,2]
[326500710,1715020253203,-205.898559,0.00016438,2]
[326500711,1715020253212,-500.0,0.00016438,2]
[326500712,1715020253221,-742.8,0.00016438,2]
[326500713,1715020253230,-500.0,0.00016438,2]
[326500714,1715020253239,-52422.18,0.00016438,2]
[326500715,1715020253249,-500.0,0.00016438,2]
[326500716,1715020253258,-500.0,0.00016438,2]
[326500717,1715020253267,-500.0,0.00016438,2]
[326500718,1715020253277,-151.0,0.00016438,2]
[326500719,1715020253286,-500.0,0.00016438,2]
[326500720,1715020253296,-500.0,0.00016438,2]
[326500721,1715020253306,-500.0,0.00016438,2]
[326500722,1715020253316,-151.0,0.00016438,2]
[326500723,1715020253325,-151.0,0.00016438,2]
[326500724,1715020253334,-151.0,0.00016438,2]
[326500725,1715020253344,-151.0,0.00016438,2]
[326500726,1715020253353,-151.0,0.00016438,2]
[326500727,1715020253366,-151.0,0.00016438,2]
[326500728,1715020253376,-500.0,0.00016438,2]
[326500729,1715020253385,-151.0,0.00016438,2]
[326500730,1715020253394,-174.55024,0.00016438,2]
[326500731,1715020253403,-151.0,0.00016438,2]
[326500732,1715020253412,-174.55024,0.00016438,2]
[326500733,1715020253421,-151.0,0.00016438,2]
[326500734,1715020253430,-151.0,0.00016438,2]
[326500735,1715020253438,-174.55024,0.00016438,2]
[326500736,1715020253447,-500.0,0.00016438,2]
[326500737,1715020253456,-151.0,0.00016438,2]
[326500738,1715020253465,-174.55024,0.00016438,2]
[326500739,1715020253475,-151.0,0.00016438,2]
[326500740,1715020253484,-174.55024,0.00016438,2]
[326500741,1715020253494,-500.0,0.00016438,2]
[326500742,1715020253504,-151.0,0.00016438,2]
[326500743,1715020253514,-174.55024,0.00016438,2]
[326500744,1715020253523,-151.0,0.00016438,2]
[326500745,1715020253533,-174.55024,0.00016438,2]
[326500746,1715020253542,-255.63768,0.00016438,2]
[326500747,1715020253551,-174.55024,0.00016438,2]
[326500748,1715020253561,-174.55024,0.00016438,2]
[326500749,1715020253570,-174.55024,0.00016438,2]
[326500750,1715020253579,-174.55024,0.00016438,2]
[326500751,1715020253588,-174.55024,0.00016438,2]
[326500752,1715020253598,-690.99,0.00016438,2]
[326500753,1715020253608,-174.55024,0.00016438,2]
[326500754,1715020253621,-174.55024,0.00016438,2]
[326500755,1715020253630,-174.55024,0.00016438,2]
[326500756,1715020253640,-174.55024,0.00016438,2]
[326500757,1715020253649,-174.55024,0.00016438,2]
[326500758,1715020253659,-174.55024,0.00016438,2]
[326500759,1715020253669,-174.55024,0.00016438,2]
[326500760,1715020253679,-174.550242,0.00016438,2]
[326500761,1715020253688,-500.0,0.00016438,2]
[326500762,1715020253698,-500.0,0.00016438,2]
[326500763,1715020253707,-500.0,0.00016438,2]
[326500764,1715020253716,-500.0,0.00016438,2]
[326500765,1715020253725,-2207.53,0.00016438,2]
[326500766,1715020253735,-500.0,0.00016438,2]
[326500767,1715020253746,-1289.32,0.00016438,2]
[326500768,1715020253760,-602.25,0.00016438,2]
[326500769,1715020253770,-151.0,0.00016438,2]
[326500770,1715020253780,-500.0,0.00016438,2]
[326500771,1715020253790,-5921.59,0.00016438,2]
[326500772,1715020253799,-645.26,0.00016438,2]
[326500773,1715020253809,-1416.37,0.00016438,2]
[326500774,1715020253818,-500.0,0.00016438,2]
[326500775,1715020253830,-951.04,0.00016438,2]
[326500776,1715020253839,-4678.08,0.00016438,2]
[326500777,1715020253849,-500.0,0.00016438,2]
[326500778,1715020253858,-500.0,0.00016438,2]
[326500779,1715020253871,-2702.18,0.00016438,2]
[326500780,1715020253881,-364.514188,0.00016438,2]
[326500781,1715020253891,-364.514188,0.00016438,2]
[326500782,1715020253903,-364.514188,0.00016438,2]
[326500783,1715020253912,-10117.65,0.00016438,2]
[326500784,1715020253921,-364.514188,0.00016438,2]
[326500785,1715020253932,-364.514188,0.00016438,2]
[326500786,1715020253942,-364.514188,0.00016438,2]
[326500787,1715020253952,-364.514188,0.00016438,2]
[326500788,1715020253962,-364.514188,0.00016438,2]
[326500789,1715020253972,-364.514188,0.00016438,2]
[326500790,1715020253981,-500.0,0.00016438,2]
[326500791,1715020253992,-500.0,0.00016438,2]
[326500792,1715020254002,-364.514188,0.00016438,2]
[326500793,1715020254011,-364.514188,0.00016438,2]
[326500794,1715020254021,-364.514188,0.00016438,2]
[326500795,1715020254030,-500.0,0.00016438,2]
[326500796,1715020254039,-816.01,0.00016438,2]
[326500797,1715020254049,-364.514188,0.00016438,2]
[326500798,1715020254059,-364.514188,0.00016438,2]
[326500799,1715020254068,-364.514188,0.00016438,2]
[326500800,1715020254078,-500.0,0.00016438,2]
[326500801,1715020254088,-807.27,0.00016438,2]
[326500802,1715020254097,-364.514188,0.00016438,2]
[326500803,1715020254108,-500.0,0.00016438,2]
[326500804,1715020254120,-2716.17,0.00016438,2]
[326500805,1715020254128,-7570.67,0.00016438,2]
[326500806,1715020254138,-803.33,0.00016438,2]
[326500807,1715020254148,-4635.15,0.00016438,2]